fUSD/lending_fUSD_20260408
["ID","MTS","AMOUNT","RATE_DAILY","PERIOD"]
[420096784,1775670644187,-293.0,0.00015803,2]
[420096785,1775670644197,-97438.76421008,0.0001584,2]
[420096786,1775670644207,-2000.0,0.0001584,2]
[420096787,1775670644218,-2000.0,0.0001584,2]
[420096788,1775670644229,-2000.0,0.0001585,2]
[420096789,1775670644240,-293.0,0.00015865,2]
[420096790,1775670644251,-500.0,0.00015872,2]
[420096791,1775670644263,-500.0,0.00015872,2]
[420096792,1775670644274,-200.0,0.00015872,2]
[420096793,1775670644285,-163.8002,0.0001588,2]
[420096794,1775670644296,-402.13551218,0.00015888,2]
[420096795,1775670644307,-500.0,0.0001589,2]
[420096796,1775670644317,-500.0,0.0001589,2]
[420096797,1775670644327,-500.0,0.0001589,2]
[420096798,1775670644338,-194.91667222,0.0001589,2]
[420096799,1775670644348,-25000.0,0.00015891,3]
[420096800,1775670644359,-4000.0,0.00015895,2]
[420096801,1775670644370,-1000.0,0.000159,2]
[420096802,1775670644381,-9126.7707,0.000159,2]
[420096803,1775670644392,-25000.0,0.000159,3]
[420096804,1775670644403,-25000.0,0.000159,3]
[420096805,1775670644413,-505.10097508,0.000159,2]
[420096806,1775670644424,-2991.50966612,0.000159,2]
[420096807,1775670644434,-184.01842302,0.000159,2]
[420096808,1775670644445,-152.16222249,0.000159,2]
[420096809,1775670644456,-1622.92709691,0.000159,2]
[420096810,1775670644467,-8403.39878336,0.000159,2]
[420096811,1775670644477,-3260.57816709,0.000159,2]
[420096812,1775670644488,-2000.0,0.000159,2]
[420096813,1775670644499,-152.0,0.00015903,2]
[420096814,1775670644509,-1527.0,0.00015903,2]
[420096815,1775670644520,-152.0,0.00015903,2]
[420096816,1775670644530,-1527.0,0.00015903,2]
[420096817,1775670644541,-152.0,0.00015903,2]
[420096818,1775670644551,-152.0,0.00015903,2]
[420096819,1775670644562,-152.0,0.00015903,2]
[420096820,1775670644577,-160.84448172,0.00015903,2]
[420096821,1775670644588,-250.0,0.00015912,2]
[420096822,1775670644600,-350.0,0.0001592,2]
[420096823,1775670644610,-392.0,0.00015933,2]
[420096824,1775670644621,-500.0,0.00015973,2]
[420096825,1775670644632,-500.0,0.00015973,2]
[420096826,1775670644643,-500.0,0.00015973,2]
[420096827,1775670644653,-500.0,0.00015973,2]
[420096828,1775670644664,-389.0016983,0.00015973,2]
[420096829,1775670644674,-500.0,0.00015973,2]
[420096830,1775670644685,-500.0,0.00015973,2]
[420096831,1775670644695,-500.0,0.00015973,2]
[420096832,1775670644705,-500.0,0.00015973,2]
[420096833,1775670644715,-199.91413168,0.00015984,2]
[420096834,1775670644726,-239.00150115,0.00015984,2]
[420096835,1775670644736,-350.0,0.00015985,3]
[420096836,1775670644746,-221.60704552,0.0001599,2]
[420096837,1775670644756,-151.0,0.00015997,2]
[420096838,1775670644766,-200.63062,0.00015997,2]
[420096839,1775670644776,-666.0,0.00015999,2]
[420096840,1775670644786,-178.411,0.00015999,2]
[420096841,1775670644797,-214.165588,0.00015999,2]
[420096842,1775670644807,-1523072.27608295,0.00016,2]
[420096844,1775670646298,-169337.53994583,0.00016,2]
[420096845,1775670646308,-150.0,0.00016,2]
[420096846,1775670646317,-1473.73853004,0.00016,2]
[420096847,1775670646327,-220231.80204525,0.00016,2]
[420096848,1775670646339,-36717.83894664,0.00016,2]
[420096849,1775670646358,-450.0,0.00016,2]
[420096850,1775670646403,-1436.6590742,0.00016,2]
[420096851,1775670646415,-1116.15,0.00016,2]
[420096854,1775670650498,2091.35,5.052e-05,2]
[420096855,1775670650915,2091.35,5.318e-05,2]
[420096856,1775670651134,2091.35,5.584e-05,2]
[420096857,1775670651328,2091.35,5.85e-05,2]
[420096858,1775670651536,1634.61,6.116e-05,2]
[420096859,1775670651559,456.74,6.116e-05,2]
[420096860,1775670651737,2091.35,6.382e-05,2]
[420096861,1775670651943,2091.35,6.648e-05,2]
[420096862,1775670652157,2091.35,6.914e-05,2]
[420096863,1775670652380,2091.35,7.18e-05,2]
[420096864,1775670652587,1177.87,7.445e-05,2]
[420096865,1775670652611,913.48,7.445e-05,2]
[420096866,1775670652790,2091.35,7.711e-05,2]
[420096867,1775670652999,2091.35,7.977e-05,2]
[420096868,1775670653216,2091.35,8.243e-05,2]
[420096869,1775670653421,2091.35,8.509e-05,2]
[420096872,1775671028302,175.0,7.945e-05,2]
[420096873,1775671028337,20470.803438,7.945e-05,2]
[420096878,1775671659383,1605.1445498,8e-05,2]
[420096879,1775671794815,394.15138645,7.888e-05,2]
[420096884,1775671830846,294.0,0.000105,30]
[420096886,1775671832355,-753.6781311,8.775e-05,2]
[420096887,1775671832368,-1246.48,8.775e-05,2]
[420096888,1775671832381,-91.1918689,8.775e-05,2]
[420096889,1775671832390,-250.0,8.808e-05,2]
[420096890,1775671832400,-158.8081311,8.98e-05,2]
[420096891,1775671832426,-91.1918689,8.98e-05,2]
[420096892,1775671832437,-1409.1681311,9.041e-05,2]
[420096893,1775671832450,-316.81471026,9.041e-05,2]
[420096902,1775671838555,-365.36715864,9.041e-05,2]
[420096903,1775671838564,-805.3892219,9.207e-05,2]
[420096904,1775671838587,-1352.34795988,9.207e-05,2]
[420096905,1775671838599,-33.07300422,9.207e-05,2]
[420096906,1775671838609,-1200.0,9.305e-05,2]
[420096907,1775671838619,-300.0,9.306e-05,2]
[420096908,1775671838628,-2091.35,9.307e-05,2]
[420096909,1775671838638,-2091.35,9.573e-05,2]
[420096910,1775671838648,-250.0,9.653e-05,2]
[420096911,1775671838658,-1924.47,9.672e-05,2]
[420096912,1775671838668,-25155.0556,9.696e-05,2]
[420096913,1775671838677,-2500.0,9.697e-05,2]
[420096914,1775671838687,-299.99,9.7e-05,2]
[420096915,1775671838697,-999.99,9.7e-05,2]
[420096916,1775671838706,-7585.02967911,9.7e-05,2]
[420096917,1775671838719,-355.41874391,9.7e-05,2]
[420096918,1775671838775,-2059.54157698,9.7e-05,2]
[420096919,1775671838785,-22743.18,9.7e-05,2]
[420096920,1775671838794,-150.99,9.7e-05,2]
[420096921,1775671838804,-500.0,9.773e-05,2]
[420096922,1775671838813,-500.0,9.773e-05,2]
[420096923,1775671838822,-500.0,9.773e-05,2]
[420096924,1775671838831,-500.0,9.773e-05,2]
[420096925,1775671838841,-375.51397884,9.773e-05,2]
[420096926,1775671838851,-500.0,9.773e-05,2]
[420096927,1775671838860,-500.0,9.773e-05,2]
[420096928,1775671838869,-167.66780482,9.773e-05,2]
[420096929,1775671838881,-500.0,9.773e-05,2]
[420096930,1775671838891,-1396.01,9.781e-05,2]
[420096931,1775671838900,-4051.09375936,9.781e-05,2]
[420096943,1775671840893,-37.32224064,9.781e-05,2]
[420096944,1775671840904,-205.809,9.781e-05,2]
[420096945,1775671840914,-1243.86875936,9.797e-05,2]
[420096946,1775671840927,-7721.94853633,9.797e-05,2]
[420096947,1775671840939,-781.06101906,9.797e-05,2]
[420096948,1775671840951,-674.66537723,9.797e-05,2]
[420096949,1775671840964,-4413.77588023,9.797e-05,2]
[420096950,1775671840976,-292.12536825,9.797e-05,2]
[420096951,1775671841104,-139543.9146987,9.797e-05,2]
[420096952,1775671841944,-531.6,9.797e-05,2]
[420096955,1775671843364,-2343.68669856,9.797e-05,2]
[420096956,1775671843377,-4613.04823389,9.797e-05,2]
[420096957,1775671843389,-825.07612132,9.797e-05,2]
[420096958,1775671843401,-981.38970727,9.797e-05,2]
[420096959,1775671843563,-743.33980056,9.797e-05,2]
[420096960,1775671843577,-250.43522177,9.797e-05,2]
[420096961,1775671843589,-2509.07303865,9.797e-05,2]
[420096962,1775671843602,-6608.52846166,9.797e-05,2]
[420096963,1775671843615,-557.20727008,9.797e-05,2]
[420096964,1775671843630,-18314.47348714,9.797e-05,2]
[420096965,1775671843643,-2486.60152622,9.797e-05,2]
[420096966,1775671843782,-1030.1308482,9.797e-05,2]
[420096967,1775671843795,-1772.92596407,9.797e-05,2]
[420096968,1775671843808,-4307.74967549,9.797e-05,2]
[420096969,1775671843821,-764.86434579,9.797e-05,2]
[420096970,1775671843834,-35290.18664627,9.797e-05,2]
[420096971,1775671843844,-500.0,9.799e-05,2]
[420096972,1775671843855,-500.0,9.799e-05,2]
[420096973,1775671843865,-500.0,9.799e-05,2]
[420096974,1775671843876,-469.48410685,9.799e-05,2]
[420096975,1775671843887,-343.01515849,9.799e-05,2]
[420096976,1775671843898,-500.0,9.799e-05,2]
[420096977,1775671843908,-187.7654201,9.799e-05,2]
[420096978,1775671843919,-500.0,9.799e-05,2]
[420096979,1775671843928,-500.0,9.799e-05,2]
[420096980,1775671843939,-371.76604829,9.799e-05,2]
[420096981,1775671843950,-1000.0,9.8e-05,2]
[420096982,1775671843960,-179784.03701874,9.8e-05,2]
[420096992,1775671846364,-6106.53102283,9.8e-05,2]
[420096993,1775671846376,-439.45032864,9.8e-05,2]
[420096994,1775671846558,-11739.86978487,9.8e-05,2]
[420096995,1775671846574,-4882.7147358,9.8e-05,2]
[420096996,1775671846794,-6547.38755688,9.8e-05,2]
[420097023,1775672108362,4379.435538,7.945e-05,2]
[420097026,1775672888969,-4511.57,9.087e-05,2]
[420097027,1775672888996,-500.0,9.245e-05,2]
[420097028,1775672889022,-1094.2927,9.576e-05,2]
[420097029,1775672889050,-2500.0,9.581e-05,2]
[420097030,1775672889077,-300.0,9.597e-05,2]
[420097031,1775672889103,-687.0,9.598e-05,2]
[420097032,1775672889129,-1200.0,9.598e-05,2]
[420097033,1775672889155,-150.0,9.598e-05,2]
[420097034,1775672889180,-294.97396364,9.599e-05,2]
[420097035,1775672889207,-500.0,9.599e-05,2]
[420097036,1775672889234,-4173.866,9.599e-05,2]
[420097037,1775672889260,-218.006,9.599e-05,2]
[420097038,1775672889291,-500.0,9.599e-05,2]
[420097039,1775672889323,-500.0,9.599e-05,2]
[420097040,1775672889355,-500.0,9.599e-05,2]
[420097041,1775672889386,-500.0,9.599e-05,2]
[420097042,1775672889414,-500.0,9.599e-05,2]
[420097043,1775672889445,-500.0,9.599e-05,2]
[420097044,1775672889478,-500.0,9.599e-05,2]
[420097045,1775672889509,-500.0,9.599e-05,2]
[420097046,1775672889540,-500.0,9.599e-05,2]
[420097047,1775672889572,-500.0,9.599e-05,2]
[420097048,1775672889605,-500.0,9.599e-05,2]
[420097049,1775672889638,-500.0,9.599e-05,2]
[420097050,1775672889669,-500.0,9.599e-05,2]
[420097051,1775672889703,-500.0,9.599e-05,2]
[420097052,1775672889736,-500.0,9.599e-05,2]
[420097053,1775672889768,-500.0,9.599e-05,2]
[420097054,1775672889800,-500.0,9.599e-05,2]
[420097055,1775672889832,-500.0,9.599e-05,2]
[420097056,1775672889865,-500.0,9.599e-05,2]
[420097057,1775672889898,-500.0,9.599e-05,2]
[420097058,1775672889929,-500.0,9.599e-05,2]
[420097059,1775672889960,-500.0,9.599e-05,2]
[420097060,1775672889991,-500.0,9.599e-05,2]
[420097061,1775672890024,-500.0,9.599e-05,2]
[420097062,1775672890056,-500.0,9.599e-05,2]
[420097063,1775672890089,-500.0,9.599e-05,2]
[420097064,1775672890121,-500.0,9.599e-05,2]
[420097065,1775672890152,-500.0,9.599e-05,2]
[420097066,1775672890184,-257.72146455,9.599e-05,2]
[420097067,1775672890214,-500.0,9.599e-05,2]
[420097068,1775672890247,-500.0,9.599e-05,2]
[420097069,1775672890279,-500.0,9.599e-05,2]
[420097070,1775672890310,-500.0,9.599e-05,2]
[420097071,1775672890341,-500.0,9.599e-05,2]
[420097072,1775672890371,-500.0,9.599e-05,2]
[420097073,1775672890403,-500.0,9.599e-05,2]
[420097074,1775672890436,-500.0,9.599e-05,2]
[420097075,1775672890470,-500.0,9.599e-05,2]
[420097076,1775672890504,-500.0,9.599e-05,2]
[420097077,1775672890536,-500.0,9.599e-05,2]
[420097078,1775672890568,-500.0,9.599e-05,2]
[420097079,1775672890602,-863.4502924,9.599e-05,2]
[420097080,1775672890635,-863.4502924,9.599e-05,2]
[420097081,1775672890667,-516.66928701,9.599e-05,2]
[420097082,1775672959855,-250.0,9.166e-05,2]
[420097083,1775672959877,-2500.0,9.581e-05,2]
[420097084,1775672959905,-346.78100539,9.599e-05,2]
[420097085,1775672959934,-863.4502924,9.599e-05,2]
[420097086,1775672959963,-863.4502924,9.599e-05,2]
[420097087,1775672959993,-863.4502924,9.599e-05,2]
[420097088,1775672960021,-863.4502924,9.599e-05,2]
[420097089,1775672960048,-863.4502924,9.599e-05,2]
[420097090,1775672960076,-863.4502924,9.599e-05,2]
[420097091,1775672960107,-863.4502924,9.599e-05,2]
[420097092,1775672960134,-863.4502924,9.599e-05,2]
[420097093,1775672960164,-863.4502924,9.599e-05,2]
[420097094,1775672960190,-863.4502924,9.599e-05,2]
[420097095,1775672960216,-863.4502924,9.599e-05,2]
[420097096,1775672960243,-863.4502924,9.599e-05,2]
[420097097,1775672960269,-863.4502924,9.599e-05,2]
[420097098,1775672960297,-863.4502924,9.599e-05,2]
[420097099,1775672960325,-863.4502924,9.599e-05,2]
[420097100,1775672960353,-863.4502924,9.599e-05,2]
[420097101,1775672960381,-863.4502924,9.599e-05,2]
[420097102,1775672960408,-863.4502924,9.599e-05,2]
[420097103,1775672960435,-863.4502924,9.599e-05,2]
[420097104,1775672960463,-863.4502924,9.599e-05,2]
[420097105,1775672960490,-863.4502924,9.599e-05,2]
[420097106,1775672960517,-863.4502924,9.599e-05,2]
[420097107,1775672960545,-863.4502924,9.599e-05,2]
[420097108,1775672960573,-863.4502924,9.599e-05,2]
[420097109,1775672960602,-863.4502924,9.599e-05,2]
[420097110,1775672960630,-863.4502924,9.599e-05,2]
[420097111,1775672960658,-863.4502924,9.599e-05,2]
[420097112,1775672960687,-863.4502924,9.599e-05,2]
[420097113,1775672960715,-863.4502924,9.599e-05,2]
[420097114,1775672960743,-863.4502924,9.599e-05,2]
[420097115,1775672960773,-863.4502924,9.599e-05,2]
[420097116,1775672960802,-833.51734893,9.599e-05,2]
[420097117,1775672960830,-833.51734893,9.599e-05,2]
[420097118,1775672960858,-833.51734893,9.599e-05,2]
[420097119,1775672960884,-833.51734893,9.599e-05,2]
[420097120,1775672960911,-833.51734893,9.599e-05,2]
[420097121,1775672960937,-833.51734893,9.599e-05,2]
[420097122,1775672960964,-833.51734893,9.599e-05,2]
[420097123,1775672960991,-833.51734893,9.599e-05,2]
[420097124,1775672961019,-833.51734893,9.599e-05,2]
[420097125,1775672961046,-833.51734893,9.599e-05,2]
[420097126,1775672961071,-833.51734893,9.599e-05,2]
[420097127,1775672961097,-833.51734893,9.599e-05,2]
[420097128,1775672961123,-833.51734893,9.599e-05,2]
[420097129,1775672961150,-833.51734893,9.599e-05,2]
[420097130,1775672961176,-833.5173489,9.599e-05,2]
[420097131,1775672961197,-500.0,9.663e-05,2]
[420097132,1775672961217,-281.88719221,9.663e-05,2]
[420097133,1775672961238,-150.99,9.674e-05,2]
[420097134,1775672961258,-299.99,9.674e-05,2]
[420097135,1775672961280,-501.08,9.675e-05,2]
[420097136,1775672961300,-150.99,9.675e-05,2]
[420097137,1775672961321,-9999.99,9.675e-05,2]
[420097138,1775672961342,-168.232854,9.678e-05,2]
[420097139,1775672961368,-260.2362338,9.68e-05,2]
[420097140,1775672961392,-500.0,9.68e-05,2]
[420097141,1775672961415,-500.0,9.68e-05,2]
[420097142,1775672961440,-500.0,9.68e-05,2]
[420097143,1775672961463,-181.43579407,9.68e-05,2]
[420097144,1775672961486,-378.6388748,9.68e-05,2]
[420097145,1775672961509,-500.0,9.68e-05,2]
[420097146,1775672961535,-331405.18494741,9.681e-05,2]
[420097147,1775672971800,-7217.572208,9.681e-05,2]
[420097153,1775673032418,-1200.0,9.499e-05,2]
[420097154,1775673032427,-70070.00000003,9.5e-05,2]
[420097155,1775673032439,-440.0,9.5e-05,2]
[420097156,1775673032451,-19689.57241436,9.5e-05,2]
[420097157,1775673032463,-351.5299975,9.5e-05,2]
[420097158,1775673032477,-478.50807902,9.5e-05,2]
[420097159,1775673032488,-61080.98394701,9.5e-05,2]
[420097161,1775673032617,-603.84235597,9.5e-05,2]
[420097163,1775673032629,-4431.10331,9.5e-05,2]
[420097173,1775673040819,-86829.823612,9.5e-05,2]
[420097174,1775673040832,-972.98655423,9.5e-05,2]
[420097175,1775673040844,-2315.09651318,9.5e-05,2]
[420097176,1775673040867,-36884.8876836,9.5e-05,2]
[420097177,1775673040881,-1135.96567531,9.5e-05,2]
[420097178,1775673040893,-454.35,9.5e-05,2]
[420097179,1775673040905,-475.80353924,9.5e-05,2]
[420097180,1775673041037,-1031.14612866,9.5e-05,2]
[420097181,1775673041049,-390.204,9.5e-05,2]
[420097182,1775673041062,-3744.20665754,9.5e-05,2]
[420097183,1775673041075,-10637.41659152,9.5e-05,2]
[420097184,1775673041087,-1819.1209591,9.5e-05,2]
[420097185,1775673041645,-115945.13314832,9.5e-05,2]
[420097186,1775673041658,-16337.6022456,9.5e-05,2]
[420097187,1775673041671,-504.28224,9.5e-05,2]
[420097188,1775673041683,-1430.81019853,9.5e-05,2]
[420097189,1775673041695,-695.34,9.5e-05,2]
[420097190,1775673041708,-651.98732006,9.5e-05,2]
[420097191,1775673042223,-20955.83799274,9.5e-05,2]
[420097192,1775673042235,-4934.206548,9.5e-05,2]
[420097193,1775673042247,-1513.16049576,9.5e-05,2]
[420097194,1775673042259,-8149.40959513,9.5e-05,2]
[420097195,1775673042429,-796.55986639,9.5e-05,2]
[420097196,1775673042440,-4264.19002541,9.5e-05,2]
[420097197,1775673042453,-8771.8,9.5e-05,2]
[420097198,1775673042465,-639.31888652,9.5e-05,2]
[420097199,1775673042477,-139523.80031643,9.5e-05,2]
[420097200,1775673042490,-884.3432,9.5e-05,2]
[420097201,1775673042638,-2988.95118336,9.5e-05,2]
[420097202,1775673042651,-854.37115895,9.5e-05,2]
[420097203,1775673042663,-2731.48063153,9.5e-05,2]
[420097204,1775673042675,-5718.65237152,9.5e-05,2]
[420097205,1775673042687,-4810.94195086,9.5e-05,2]
[420097208,1775673043587,-4051.58577808,9.5e-05,2]
[420097209,1775673043599,-500.0,9.5e-05,2]
[420097210,1775673043612,-6723.21639781,9.5e-05,2]
[420097211,1775673043625,-3594.06331873,9.5e-05,2]
[420097212,1775673043638,-1142.2,9.5e-05,2]
[420097213,1775673043804,-5700.45216036,9.5e-05,2]
[420097214,1775673043817,-6036.6104037,9.5e-05,2]
[420097215,1775673044019,-341.04,9.5e-05,2]
[420097220,1775673046396,-385.86598933,9.5e-05,2]
[420097221,1775673046409,-651.98542784,9.5e-05,2]
[420097222,1775673046421,-3252.08722112,9.5e-05,2]
[420097223,1775673046432,-25462.28695369,9.5e-05,2]
[420097224,1775673046536,-83955.45265391,9.5e-05,2]
[420097225,1775673046554,-4381.2600453,9.5e-05,2]
[420097226,1775673046567,-494.61771879,9.5e-05,2]
[420097227,1775673046581,-65000.0,9.5e-05,2]
[420097228,1775673046594,-1070.39637502,9.5e-05,2]
[420097229,1775673046607,-10324.24765767,9.5e-05,2]
[420097230,1775673046620,-11285.92293609,9.5e-05,2]
[420097231,1775673046632,-7629.51241606,9.5e-05,2]
[420097232,1775673046645,-673.28,9.5e-05,2]
[420097233,1775673046716,-4379.43553786,9.5e-05,2]
[420097246,1775673066618,170.0,9.5e-05,3]
[420097254,1775673258024,263.47,4.708e-05,2]
[420097255,1775673259492,263.47,4.955e-05,2]
[420097256,1775673259719,263.47,5.203e-05,2]
[420097257,1775673259926,263.47,5.451e-05,2]
[420097258,1775673260130,263.47,5.699e-05,2]
[420097259,1775673260345,263.47,5.947e-05,2]
[420097260,1775673260602,263.47,6.194e-05,2]
[420097261,1775673260836,263.47,6.442e-05,2]
[420097262,1775673261047,263.47,6.69e-05,2]
[420097263,1775673261242,263.47,6.938e-05,2]
[420097264,1775673261458,263.47,7.185e-05,2]
[420097265,1775673262142,263.47,7.433e-05,2]
[420097266,1775673262177,263.47,7.681e-05,2]
[420097267,1775673262209,196.16852575,7.929e-05,2]
[420097268,1775673262233,67.30147425,7.929e-05,2]
[420097269,1775673262305,263.47,8.177e-05,2]
[420097270,1775673262760,263.47,8.424e-05,2]
[420097271,1775673311836,156.0,8.424e-05,3]
[420097273,1775674039138,-263.47,8.672e-05,2]
[420097274,1775674039160,-1333.78,8.889e-05,2]
[420097275,1775674039181,-263.47,8.92e-05,2]
[420097276,1775674039202,-200.0,9.001e-05,2]
[420097277,1775674039222,-161.95,9.032e-05,2]
[420097278,1775674039243,-1500.0,9.095e-05,2]
[420097279,1775674039265,-263.47,9.168e-05,2]
[420097280,1775674039287,-1200.0,9.299e-05,2]
[420097281,1775674039309,-2169.43288302,9.3e-05,2]
[420097282,1775674152124,-240.11061094,9.299e-05,2]
[420097283,1775674152146,-500.0,9.299e-05,2]
[420097284,1775674152169,-500.0,9.299e-05,2]
[420097285,1775674152191,-465.04721236,9.299e-05,2]
[420097286,1775674152215,-327.00505585,9.299e-05,2]
[420097287,1775674152236,-1477.20431698,9.3e-05,2]
[420097288,1775674152258,-5113.602,9.3e-05,2]
[420097289,1775674152704,-4151.2258,9.3e-05,2]
[420097290,1775674152735,-53001.53516387,9.3e-05,2]
[420097291,1775674159128,-500.0,9.299e-05,2]
[420097292,1775674159158,-500.0,9.299e-05,2]
[420097293,1775674159184,-500.0,9.299e-05,2]
[420097294,1775674159210,-500.0,9.299e-05,2]
[420097295,1775674159235,-500.0,9.299e-05,2]
[420097296,1775674159261,-500.0,9.299e-05,2]
[420097297,1775674159287,-500.0,9.299e-05,2]
[420097298,1775674159313,-500.0,9.299e-05,2]
[420097299,1775674159339,-500.0,9.299e-05,2]
[420097300,1775674159365,-500.0,9.299e-05,2]
[420097301,1775674159391,-500.0,9.299e-05,2]
[420097302,1775674159417,-500.0,9.299e-05,2]
[420097303,1775674159443,-500.0,9.299e-05,2]
[420097304,1775674159468,-500.0,9.299e-05,2]
[420097305,1775674159495,-500.0,9.299e-05,2]
[420097306,1775674159521,-500.0,9.299e-05,2]
[420097307,1775674159547,-500.0,9.299e-05,2]
[420097308,1775674159574,-500.0,9.299e-05,2]
[420097309,1775674159602,-500.0,9.299e-05,2]
[420097310,1775674159628,-500.0,9.299e-05,2]
[420097311,1775674159654,-500.0,9.299e-05,2]
[420097312,1775674159682,-500.0,9.299e-05,2]
[420097313,1775674159709,-500.0,9.299e-05,2]
[420097314,1775674159736,-500.0,9.299e-05,2]
[420097315,1775674159763,-500.0,9.299e-05,2]
[420097316,1775674159789,-500.0,9.299e-05,2]
[420097317,1775674159816,-500.0,9.299e-05,2]
[420097318,1775674159843,-500.0,9.299e-05,2]
[420097319,1775674159870,-627.68775357,9.299e-05,2]
[420097320,1775674159895,-41081.72054643,9.3e-05,2]
[420097321,1775674173097,-564.4465134,9.3e-05,2]
[420097329,1775674232517,-343.32323318,9.289e-05,2]
[420097330,1775674232695,-740.01793856,9.289e-05,2]
[420097331,1775674232707,-352.40036784,9.289e-05,2]
[420097332,1775674232727,-1200.0,9.298e-05,2]
[420097333,1775674232738,-2026.58485642,9.299e-05,2]
[420097334,1775674232871,-15546.51639066,9.299e-05,2]
[420097335,1775674232883,-454.55387908,9.299e-05,2]
[420097336,1775674232894,-665.79967857,9.299e-05,2]
[420097337,1775674232906,-37813.15391911,9.299e-05,2]
[420097341,1775674239329,-252.83936249,9.299e-05,2]
[420097342,1775674239362,-1405.25491497,9.299e-05,2]
[420097343,1775674239373,-629.29512475,9.299e-05,2]
[420097344,1775674239385,-2766.92342359,9.299e-05,2]
[420097345,1775674239397,-3707.29879837,9.299e-05,2]
[420097346,1775674239467,-144614.51145199,9.299e-05,2]
[420097347,1775674239477,-430.95881578,9.299e-05,2]
[420097348,1775674239486,-630864.60715597,9.3e-05,2]
[420097350,1775674240827,-194590.3014832,9.3e-05,2]
[420097351,1775674241599,-3693.67181145,9.3e-05,2]
[420097352,1775674241780,-42743.5,9.3e-05,2]
[420097388,1775674242807,-17643.73486407,9.3e-05,2]
[420097389,1775674243014,-497.8555454,9.3e-05,2]
[420097392,1775674243027,-2667.88970174,9.3e-05,2]
[420097394,1775674243040,-22962.30926793,9.3e-05,2]
[420097426,1775674245706,-59835.9315669,9.3e-05,2]
[420097427,1775674245774,-549.74487618,9.3e-05,2]
[420097428,1775674245788,-450.60654917,9.3e-05,2]
[420097429,1775674245800,-3973.95170521,9.3e-05,2]
[420097430,1775674245824,-4535.0324145,9.3e-05,2]
[420097431,1775674245836,-425.20431589,9.3e-05,2]
[420097538,1775674987366,174.0,9.3e-05,3]
[420097539,1775675045220,164.0,9.3e-05,3]
[420097540,1775675105965,155.0,9.3e-05,3]
[420097541,1775675107880,164.0,9.3e-05,3]
[420097542,1775675141768,-1741.45620294,8.953e-05,2]
[420097543,1775675166910,164.0,9.3e-05,3]
[420097544,1775675226748,164.0,9.3e-05,3]
[420097545,1775675254090,-500.0,8.673e-05,2]
[420097546,1775675254115,-110.96379706,8.953e-05,2]
[420097547,1775675254138,-743.57084384,9.033e-05,2]
[420097548,1775675287105,164.0,9.3e-05,3]
[420097549,1775675334119,893.0,9.344e-05,5]
[420097550,1775675351912,164.0,9.3e-05,3]
[420097551,1775675370040,-3916.62635812,9.033e-05,2]
[420097552,1775675370064,-500.0,9.173e-05,2]
[420097553,1775675370087,-500.0,9.173e-05,2]
[420097554,1775675370111,-150.0,9.197e-05,2]
[420097555,1775675370135,-500.0,9.198e-05,2]
[420097556,1775675370160,-500.0,9.198e-05,2]
[420097557,1775675370186,-168.07742766,9.198e-05,2]
[420097558,1775675370210,-500.0,9.198e-05,2]
[420097559,1775675370232,-500.0,9.198e-05,2]
[420097560,1775675370256,-500.0,9.198e-05,2]
[420097561,1775675370279,-578.95872619,9.198e-05,2]
[420097562,1775675370301,-500.0,9.198e-05,2]
[420097563,1775675370323,-500.0,9.198e-05,2]
[420097564,1775675370345,-228.9035391,9.198e-05,2]
[420097565,1775675370369,-500.0,9.198e-05,2]
[420097566,1775675370398,-500.0,9.198e-05,2]
[420097567,1775675370427,-500.0,9.198e-05,2]
[420097568,1775675370455,-500.0,9.198e-05,2]
[420097569,1775675370483,-500.0,9.198e-05,2]
[420097570,1775675370511,-500.0,9.198e-05,2]
[420097571,1775675370540,-500.0,9.198e-05,2]
[420097572,1775675371075,-500.0,9.198e-05,2]
[420097573,1775675371103,-500.0,9.198e-05,2]
[420097574,1775675371130,-500.0,9.198e-05,2]
[420097575,1775675371156,-500.0,9.198e-05,2]
[420097576,1775675371184,-500.0,9.198e-05,2]
[420097577,1775675371210,-500.0,9.198e-05,2]
[420097578,1775675371236,-500.0,9.198e-05,2]
[420097579,1775675371264,-500.0,9.198e-05,2]
[420097580,1775675371291,-500.0,9.198e-05,2]
[420097581,1775675371319,-500.0,9.198e-05,2]
[420097582,1775675371346,-500.0,9.198e-05,2]
[420097583,1775675371374,-500.0,9.198e-05,2]